bitfinex-derivatives/quotes_BNBF0:USTF0_20250401
["timestamp","ask_amount","ask_price","bid_price","bid_amount"]
[1743476709679,0.30190638,609.22,607.65,1.94213683]
[1743476709873,0.30190638,609.21,607.65,1.94213683]
[1743476710076,0.28590324,609.22,607.65,1.94213683]
[1743476710277,0.30190638,609.21,607.65,1.94213683]
[1743476710675,0.30190063,609.2,607.65,1.94213683]
[1743476710874,0.30190063,609.19,607.65,1.94213683]
[1743476711073,0.30190063,609.18,607.65,1.94213683]
[1743476711275,0.30190063,609.17,607.65,1.94213683]
[1743476711474,0.30190063,609.16,607.65,1.94213683]
[1743476711674,0.30190063,609.15,607.65,1.94213683]
[1743476711979,0.28590324,609.22,607.65,1.94213683]
[1743476712177,0.30189883,609.21,607.65,1.94213683]
[1743476712373,0.28592791,609.14,607.65,1.94213683]
[1743476715080,2.51363342,609.49,607.65,1.94213683]
[1743476715279,0.30191538,609.48,607.65,1.94213683]
[1743476715475,0.2858962,609.13,607.65,1.94213683]
[1743476715677,0.32813781,609.5,607.65,1.94213683]
[1743476715873,0.30190232,609.49,607.65,1.94213683]
[1743476716079,0.28589737,609.12,607.65,1.94213683]
[1743476716279,0.32813781,609.5,607.65,1.94213683]
[1743476716480,0.30190258,609.49,607.65,1.94213683]
[1743476716678,0.2858962,609.11,607.65,1.94213683]
[1743476716883,0.32813781,609.5,607.65,1.94213683]
[1743476717082,2.51363342,609.48,607.65,1.94213683]
[1743476717282,0.2858962,609.1,607.65,1.94213683]
[1743476717583,2.51363342,609.48,607.65,1.94213683]
[1743476717784,0.28589855,609.09,607.65,1.94213683]
[1743476718180,2.51363342,609.48,607.65,1.94213683]
[1743476718381,0.28589737,609.08,607.65,1.94213683]
[1743476718681,2.51363342,609.48,607.65,1.94213683]
[1743476718883,2.51363342,609.45,607.65,1.94213683]
[1743476719077,0.28589855,609.07,607.65,1.94213683]
[1743476719280,2.51363342,609.45,607.65,1.94213683]
[1743476719481,0.30190323,609.44,607.65,1.94213683]
[1743476719681,0.28590207,609.06,607.65,1.94213683]
[1743476719885,2.51363342,609.49,607.65,1.94213683]
[1743476720082,0.30190274,609.48,607.65,1.94213683]
[1743476720285,0.28590207,609.05,607.65,1.94213683]
[1743476720484,2.51363342,609.49,607.65,1.94213683]
[1743476720686,0.30190274,609.48,607.65,1.94213683]
[1743476720882,0.28589737,609.04,607.65,1.94213683]
[1743476721082,2.51363342,609.49,607.65,1.94213683]
[1743476721283,2.51363342,609.47,607.65,1.94213683]
[1743476721486,0.28589737,609.03,607.65,1.94213683]
[1743476721684,2.51363342,609.47,607.65,1.94213683]
[1743476721885,0.30190277,609.46,607.65,1.94213683]
[1743476722081,0.28589972,609.02,607.65,1.94213683]
[1743476722281,2.51363342,609.47,607.65,1.94213683]
[1743476722486,0.30191033,609.46,607.65,1.94213683]
[1743476722683,0.28589972,609.01,607.65,1.94213683]
[1743476722889,2.51363342,609.47,607.65,1.94213683]
[1743476723188,0.28589972,609.0,607.65,1.94213683]
[1743476723589,2.51363342,609.44,607.65,1.94213683]
[1743476723790,0.28590207,608.99,607.65,1.94213683]
[1743476724188,0.32813781,609.5,607.65,1.94213683]
[1743476724189,2.51363342,609.36,607.65,1.94213683]
[1743476724384,0.28590207,608.98,607.65,1.94213683]
[1743476724786,2.51363342,609.36,607.65,1.94213683]
[1743476724986,0.28591147,608.97,607.65,1.94213683]
[1743476725385,2.51363342,609.47,607.65,1.94213683]
[1743476725687,0.28589855,608.96,607.65,1.94213683]
[1743476725891,2.51363342,609.48,607.65,1.94213683]
[1743476726089,0.30192383,609.47,607.65,1.94213683]
[1743476726286,0.28589972,608.95,607.65,1.94213683]
[1743476726684,2.51363342,609.48,607.65,1.94213683]
[1743476726890,0.28589855,608.94,607.65,1.94213683]
[1743476727192,2.51363342,609.48,607.65,1.94213683]
[1743476727390,0.30191095,609.47,607.65,1.94213683]
[1743476727589,0.28589855,608.93,607.65,1.94213683]
[1743476727787,2.51363342,609.45,607.65,1.94213683]
[1743476727989,0.2859009,608.92,607.65,1.94213683]
[1743476728392,2.51363342,609.45,607.65,1.94213683]
[1743476728587,0.2859009,608.91,607.65,1.94213683]
[1743476729095,0.32813781,609.5,607.65,1.94213683]
[1743476729295,0.28591616,608.9,607.65,1.94213683]
[1743476729689,0.32813781,609.5,607.65,1.94213683]
[1743476729998,0.28591734,608.89,607.65,1.94213683]
[1743476730196,0.32813781,609.5,607.65,1.94213683]
[1743476730396,0.30193633,609.49,607.65,1.94213683]
[1743476730597,0.28591734,608.88,607.65,1.94213683]
[1743476730898,0.32813781,609.5,607.65,1.94213683]
[1743476731099,0.28591734,608.87,607.65,1.94213683]
[1743476731597,0.32813781,609.5,607.65,1.94213683]
[1743476731798,0.28591734,608.86,607.65,1.94213683]
[1743476732099,0.32813781,609.5,607.65,1.94213683]
[1743476732298,0.28591734,608.85,607.65,1.94213683]
[1743476732696,0.32813781,609.5,607.65,1.94213683]
[1743476732896,0.28591616,608.84,607.65,1.94213683]
[1743476733198,0.32813781,609.5,607.65,1.94213683]
[1743476733398,0.30194671,609.49,607.65,1.94213683]
[1743476733697,0.28591734,608.83,607.65,1.94213683]
[1743476733898,0.32813781,609.5,607.65,1.94213683]
[1743476734104,0.28591734,608.82,607.65,1.94213683]
[1743476734505,0.32813781,609.5,607.65,1.94213683]
[1743476734706,0.28591616,608.81,607.65,1.94213683]
[1743476735103,0.32813781,609.5,607.65,1.94213683]
[1743476735307,0.28591734,608.8,607.65,1.94213683]
[1743476735609,0.32813781,609.5,607.65,1.94213683]
[1743476735807,0.3019335,609.49,607.65,1.94213683]
[1743476736007,0.28591734,608.79,607.65,1.94213683]
[1743476736208,0.32813781,609.5,607.65,1.94213683]
[1743476736403,0.30193249,609.49,607.65,1.94213683]
[1743476736606,0.28591734,608.78,607.65,1.94213683]
[1743476736804,0.32813781,609.5,607.65,1.94213683]
[1743476737002,0.30193183,609.49,607.65,1.94213683]
[1743476737203,0.28591734,608.77,607.65,1.94213683]
[1743476737401,0.32813781,609.5,607.65,1.94213683]
[1743476737606,0.30193176,609.49,607.65,1.94213683]
[1743476737805,0.28591734,608.76,607.65,1.94213683]
[1743476738203,0.32813781,609.5,607.65,1.94213683]
[1743476738407,0.28591734,608.75,607.65,1.94213683]
[1743476738807,0.32813781,609.5,607.65,1.94213683]
[1743476739011,0.28591734,608.74,607.65,1.94213683]
[1743476739404,0.32813781,609.5,607.65,1.94213683]
[1743476739607,0.28591734,608.73,607.65,1.94213683]
[1743476740007,0.32813781,609.5,607.65,1.94213683]
[1743476740208,0.28591616,608.72,607.65,1.94213683]
[1743476740608,0.32813781,609.5,607.65,1.94213683]
[1743476740811,0.28591734,608.71,607.65,1.94213683]
[1743476741205,0.32813781,609.5,607.65,1.94213683]
[1743476741406,0.28591734,608.7,607.65,1.94213683]
[1743476741815,2.51363342,609.43,607.65,1.94213683]
[1743476742010,0.28591734,608.69,607.65,1.94213683]
[1743476742410,2.51363342,609.43,607.65,1.94213683]
[1743476742611,0.28592556,608.68,607.65,1.94213683]
[1743476743009,2.51363342,609.4,607.65,1.94213683]
[1743476743211,0.28592556,608.67,607.65,1.94213683]
[1743476743610,2.51363342,609.4,607.65,1.94213683]
[1743476743810,0.28592908,608.66,607.65,1.94213683]
[1743476744212,0.32813781,609.5,607.65,1.94213683]
[1743476744413,0.28592908,608.65,607.65,1.94213683]
[1743476744808,0.32813781,609.5,607.65,1.94213683]
[1743476745012,0.28591734,608.65,607.65,1.94213683]
[1743476745312,0.32813781,609.5,607.65,1.94213683]
[1743476745504,0.30194207,609.49,607.65,1.94213683]
[1743476745711,0.28591734,608.65,607.65,1.94213683]
[1743476745909,0.32813781,609.5,607.65,1.94213683]
[1743476746112,0.3019502,609.49,607.65,1.94213683]
[1743476746407,0.28591734,608.65,607.65,1.94213683]
[1743476746608,0.32813781,609.5,607.65,1.94213683]
[1743476746912,0.28591616,609.48,607.65,1.94213683]
[1743476747112,0.30194752,609.47,607.65,1.94213683]
[1743476748504,0.58787073,609.46,607.65,1.94213683]
[1743476748708,0.30194752,609.45,607.65,1.94213683]
[1743476750915,0.28592321,609.46,607.65,1.94213683]
[1743476751107,0.30197196,609.45,607.65,1.94213683]
[1743476752618,0.30196807,609.44,607.65,1.94213683]
[1743476752917,0.30196807,609.43,607.65,1.94213683]
[1743476753111,0.30196807,609.45,607.65,1.94213683]
[1743476753416,0.30196807,609.44,607.65,1.94213683]
[1743476753618,0.30196807,609.45,607.65,1.94213683]
[1743476753914,0.30196807,609.44,607.65,1.94213683]
[1743476754118,0.30196807,609.45,607.65,1.94213683]
[1743476754319,0.30196807,609.44,607.65,1.94213683]
[1743476754622,0.30196807,609.43,607.65,1.94213683]
[1743476757419,0.5878948,609.42,607.65,1.94213683]
[1743476757619,0.30196219,609.41,607.65,1.94213683]
[1743476760316,0.28593496,609.4,607.65,1.94213683]
[1743476760514,0.58789715,609.4,607.65,1.94213683]
[1743476760719,0.30196219,609.39,607.65,1.94213683]
[1743476761422,2.51363342,609.31,607.65,1.94213683]
[1743476762219,0.28593496,609.4,607.65,1.94213683]
[1743476762420,0.30196005,609.39,607.65,1.94213683]
[1743476763323,0.28593731,609.38,607.65,1.94213683]
[1743476763623,0.30196005,609.37,607.65,1.94213683]
[1743476766417,0.32813781,609.5,607.65,1.94213683]
[1743476766418,0.28594671,609.36,607.65,1.94213683]
[1743476766823,0.30196005,609.35,607.65,1.94213683]
[1743476769217,0.30196005,609.49,607.65,1.94213683]
[1743476769422,0.28594906,609.34,607.65,1.94213683]
[1743476769618,0.32814858,609.48,607.65,1.94213683]
[1743476769922,0.30195814,609.47,607.65,1.94213683]
[1743476770123,0.28593496,609.33,607.65,1.94213683]
[1743476770325,0.32815935,609.46,607.65,1.94213683]
[1743476770520,0.30195371,609.45,607.65,1.94213683]
[1743476770720,0.28593731,609.32,607.65,1.94213683]
[1743476770920,0.32816473,609.45,607.65,1.94213683]
[1743476771223,0.28593848,609.31,607.65,1.94213683]
[1743476771624,0.32816473,609.45,607.65,1.94213683]
[1743476771822,0.28593966,609.3,607.65,1.94213683]
[1743476772221,0.32816473,609.45,607.65,1.94213683]
[1743476772419,0.28593848,609.29,607.65,1.94213683]
[1743476772826,0.32816473,609.45,607.65,1.94213683]
[1743476773126,0.28593848,609.28,607.65,1.94213683]
[1743476773332,0.32816473,609.45,607.65,1.94213683]
[1743476773526,0.30198554,609.44,607.65,1.94213683]
[1743476773828,0.28594906,609.27,607.65,1.94213683]
[1743476774024,0.3281755,609.43,607.65,1.94213683]
[1743476774225,0.28595258,609.26,607.65,1.94213683]
[1743476774627,0.3281755,609.43,607.65,1.94213683]
[1743476774823,0.28595258,609.25,607.65,1.94213683]
[1743476777030,0.30198002,609.24,607.65,1.94213683]
[1743476777631,0.30199363,609.23,607.65,1.94213683]
[1743476777933,0.30199363,609.22,607.65,1.94213683]
[1743476778130,0.30199363,609.21,607.65,1.94213683]
[1743476778327,0.30199363,609.42,607.65,1.94213683]
[1743476778531,0.2859749,609.21,607.65,1.94213683]
[1743476778725,0.32818627,609.41,607.65,1.94213683]
[1743476778930,0.30202023,609.4,607.65,1.94213683]
[1743476779129,0.28595963,609.2,607.65,1.94213683]
[1743476779332,0.32818627,609.41,607.65,1.94213683]
[1743476779526,0.3020167,609.4,607.65,1.94213683]
[1743476779727,0.2859608,609.19,607.65,1.94213683]
[1743476779932,0.32818627,609.41,607.65,1.94213683]
[1743476780132,0.30200593,609.4,607.65,1.94213683]
[1743476780329,0.2859608,609.18,607.65,1.94213683]
[1743476780526,0.32818627,609.41,607.65,1.94213683]
[1743476780928,0.2859608,609.17,607.65,1.94213683]
[1743476781234,0.32818627,609.41,607.65,1.94213683]
[1743476781432,0.2859608,609.16,607.65,1.94213683]
[1743476781633,0.30200428,609.15,607.65,1.94213683]
[1743476782133,0.285989,609.14,607.65,1.94213683]
[1743476782530,0.30200428,609.13,607.65,1.94213683]
[1743476783134,0.30200318,609.12,607.65,1.94213683]
[1743476783333,0.30200318,609.11,607.65,1.94213683]
[1743476783536,0.30200318,609.1,607.65,1.94213683]
[1743476783734,0.30200318,609.09,607.65,1.94213683]
[1743476783935,0.30200318,609.08,607.65,1.94213683]
[1743476784131,0.30200318,609.07,607.65,1.94213683]
[1743476784337,0.28597725,609.07,607.65,1.94213683]
[1743476784635,0.30196253,609.06,607.65,1.94213683]
[1743476785130,0.28597725,609.07,607.65,1.94213683]
[1743476785334,0.30196286,609.06,607.65,1.94213683]
[1743476787344,0.30196286,609.27,607.65,1.94213683]
[1743476787643,0.28599958,609.05,607.65,1.94213683]
[1743476787943,2.51363342,609.28,607.65,1.94213683]
[1743476788144,0.28597725,609.04,607.65,1.94213683]
[1743476788341,2.51363342,609.32,607.65,1.94213683]
[1743476788642,0.28597608,609.03,607.65,1.94213683]
[1743476789043,2.51363342,609.32,607.65,1.94213683]
[1743476789243,0.2859702,609.02,607.65,1.94213683]
[1743476789641,2.51363342,609.32,607.65,1.94213683]
[1743476789844,0.2859702,609.01,607.65,1.94213683]
[1743476790237,2.51363342,609.4,607.65,1.94213683]
[1743476790438,0.2859608,609.0,607.65,1.94213683]
[1743476790843,0.32819704,609.39,607.65,1.94213683]
[1743476791044,0.28596198,608.99,607.65,1.94213683]
[1743476791545,2.51363342,609.38,607.65,1.94213683]
[1743476791746,0.28596198,608.98,607.65,1.94213683]
[1743476791947,2.51363342,609.38,607.65,1.94213683]
[1743476792145,0.30198937,609.37,607.65,1.94213683]
[1743476792345,0.28596433,608.97,607.65,1.94213683]
[1743476792542,2.51363342,609.38,607.65,1.94213683]
[1743476792747,0.30198888,609.37,607.65,1.94213683]
[1743476792947,0.28596433,608.96,607.65,1.94213683]
[1743476793248,0.32819704,609.39,607.65,1.94213683]
[1743476793548,0.28596433,608.95,607.65,1.94213683]
[1743476793749,0.32819704,609.39,607.65,1.94213683]
[1743476793950,0.30199358,609.38,607.65,1.94213683]
[1743476794243,0.28596315,608.94,607.65,1.94213683]
[1743476794443,0.32819704,609.39,607.65,1.94213683]
[1743476794642,0.28596315,608.93,607.65,1.94213683]
[1743476795049,0.32819704,609.39,607.65,1.94213683]
[1743476795349,0.28596198,608.92,607.65,1.94213683]
[1743476795551,0.32819704,609.39,607.65,1.94213683]
[1743476795743,0.30200848,609.38,607.65,1.94213683]
[1743476795949,0.28596785,608.91,607.65,1.94213683]
[1743476796143,0.32819704,609.39,607.65,1.94213683]
[1743476796348,0.30203078,609.38,607.65,1.94213683]
[1743476796545,0.28597608,608.9,607.65,1.94213683]
[1743476796747,2.51363342,609.29,607.65,1.94213683]
[1743476796950,0.30203094,609.28,607.65,1.94213683]
[1743476797146,0.28598548,608.89,607.65,1.94213683]
[1743476797350,0.32819704,609.39,607.65,1.94213683]
[1743476797551,0.30203094,609.38,607.65,1.94213683]
[1743476797852,0.28598665,608.88,607.65,1.94213683]
[1743476798048,0.32819704,609.39,607.65,1.94213683]
[1743476798251,0.28597373,609.37,607.65,1.94213683]
[1743476798452,0.3020235,609.36,607.65,1.94213683]
[1743476799548,0.32821859,609.35,607.65,1.94213683]
[1743476799752,0.3020235,609.34,607.65,1.94213683]
[1743476799949,0.63024748,609.34,607.65,1.94213683]
[1743476800151,0.3020235,609.33,607.65,1.94213683]
[1743476802052,0.32822398,609.34,607.65,1.94213683]
[1743476802253,0.30202515,609.33,607.65,1.94213683]
[1743476802454,0.28597255,609.32,607.65,1.94213683]
[1743476802755,0.30202515,609.31,607.65,1.94213683]
[1743476807357,2.51363342,609.26,607.65,1.94213683]
[1743476807557,0.30202515,609.25,607.65,1.94213683]
[1743476808559,0.28598195,609.24,607.65,1.94213683]
[1743476808757,0.30202515,609.23,607.65,1.94213683]
[1743476808958,2.51363342,609.18,607.65,1.94213683]
[1743476809161,0.30202515,609.17,607.65,1.94213683]
[1743476810064,2.81565857,609.17,607.65,1.94213683]
[1743476810264,0.30202515,609.16,607.65,1.94213683]
[1743476811562,0.28599958,609.15,607.65,1.94213683]
[1743476811859,0.30202515,609.14,607.65,1.94213683]
[1743476814061,0.28599958,609.15,607.65,1.94213683]
[1743476814264,0.30203041,609.14,607.65,1.94213683]
[1743476814465,0.58803234,609.13,607.65,1.94213683]
[1743476814665,0.30203041,609.12,607.65,1.94213683]
[1743476817468,0.28600663,609.11,607.65,1.94213683]
[1743476817867,0.30203041,609.1,607.65,1.94213683]
[1743476818769,0.28600663,609.11,607.65,1.94213683]
[1743476818969,0.30203078,609.1,607.65,1.94213683]
[1743476821472,0.28600663,609.11,607.65,1.94213683]
[1743476821774,0.30201776,609.1,607.65,1.94213683]
[1743476823073,0.28600663,609.11,607.65,1.94213683]
[1743476823273,0.30202003,609.1,607.65,1.94213683]
[1743476824673,0.28600663,609.11,607.65,1.94213683]
[1743476824873,0.30202838,609.1,607.65,1.94213683]
[1743476826369,0.30202838,609.33,607.65,1.94213683]
[1743476826572,0.28600898,609.09,607.65,1.94213683]
[1743476826773,0.30202838,609.08,607.65,1.94213683]
[1743476826970,0.30202838,609.29,607.65,1.94213683]
[1743476827172,0.2859843,609.08,607.65,1.94213683]
[1743476827375,0.30202838,609.07,607.65,1.94213683]
[1743476827575,0.30202838,609.06,607.65,1.94213683]
[1743476827773,0.285989,609.07,607.65,1.94213683]
[1743476829176,2.51363342,609.29,607.65,1.94213683]
[1743476829478,0.30202838,609.28,607.65,1.94213683]
[1743476829678,0.58801621,609.28,607.65,1.94213683]
[1743476829878,0.30202838,609.27,607.65,1.94213683]
[1743476831080,0.30202812,609.26,607.65,1.94213683]
[1743476831280,0.30202812,609.27,607.65,1.94213683]
[1743476831478,0.30202812,609.26,607.65,1.94213683]
[1743476831679,0.30202812,609.27,607.65,1.94213683]
[1743476831874,0.28598783,609.28,607.65,1.94213683]
[1743476831875,0.30202812,609.26,607.65,1.94213683]
[1743476832085,0.30202812,609.27,607.65,1.94213683]
[1743476832280,0.30202812,609.26,607.65,1.94213683]
[1743476832481,0.30202812,609.27,607.65,1.94213683]
[1743476832677,0.30202838,609.26,607.65,1.94213683]
[1743476832879,0.30202838,609.25,607.65,1.94213683]
[1743476833079,0.30202838,609.27,607.65,1.94213683]
[1743476833277,0.30202838,609.26,607.65,1.94213683]
[1743476833483,0.30202838,609.27,607.65,1.94213683]
[1743476833682,0.30202838,609.26,607.65,1.94213683]
[1743476833884,0.30202838,609.25,607.65,1.94213683]
[1743476834085,0.30202838,609.24,607.65,1.94213683]
[1743476834282,0.30202838,609.27,607.65,1.94213683]
[1743476834482,0.30202838,609.26,607.65,1.94213683]
[1743476834886,0.30202838,609.27,607.65,1.94213683]
[1743476835084,0.30202838,609.26,607.65,1.94213683]
[1743476835285,0.30202838,609.32,607.65,1.94213683]
[1743476835485,2.51363342,609.5,607.65,1.94213683]
[1743476835486,0.28600076,609.26,607.65,1.94213683]
[1743476835684,0.30202838,609.25,607.65,1.94213683]
[1743476836184,0.63030084,609.25,607.65,1.94213683]
[1743476836485,0.30202838,609.24,607.65,1.94213683]
[1743476837483,0.32827246,609.25,607.65,1.94213683]
[1743476837484,0.30205896,609.23,607.65,1.94213683]
[1743476837785,0.30205896,609.22,607.65,1.94213683]
[1743476837984,0.30205896,609.24,607.65,1.94213683]
[1743476838179,0.30205896,609.23,607.65,1.94213683]
[1743476838386,0.30205896,609.24,607.65,1.94213683]
[1743476838584,0.28601133,609.23,607.65,1.94213683]
[1743476839178,0.30205574,609.22,607.65,1.94213683]
[1743476841389,0.30205574,609.24,607.65,1.94213683]
[1743476841691,0.28601133,609.21,607.65,1.94213683]
[1743476841891,0.30205574,609.2,607.65,1.94213683]
[1743476844496,0.58806237,609.19,607.65,1.94213683]
[1743476844696,0.30205574,609.18,607.65,1.94213683]
[1743476844895,2.51363342,609.15,607.65,1.94213683]
[1743476845096,0.30205574,609.14,607.65,1.94213683]
[1743476845293,2.51363342,609.15,607.65,1.94213683]
[1743476845489,0.30203993,609.14,607.65,1.94213683]
[1743476846698,2.51363342,609.13,607.65,1.94213683]
[1743476846898,0.30203993,609.12,607.65,1.94213683]
[1743476847393,0.28602426,609.11,607.65,1.94213683]
[1743476847597,0.30203993,609.1,607.65,1.94213683]
[1743476848200,2.51363342,609.09,607.65,1.94213683]
[1743476848393,0.30203993,609.08,607.65,1.94213683]
[1743476849796,2.51363342,609.07,607.65,1.94213683]
[1743476849995,0.30203993,609.06,607.65,1.94213683]
[1743476850598,0.28603014,609.05,607.65,1.94213683]
[1743476850793,0.30203993,609.04,607.65,1.94213683]
[1743476853400,0.30203993,609.24,607.65,1.94213683]
[1743476853601,0.28603484,609.03,607.65,1.94213683]
[1743476853900,0.32827246,609.25,607.65,1.94213683]
[1743476854099,0.28601251,609.02,607.65,1.94213683]
[1743476854499,0.32827246,609.25,607.65,1.94213683]
[1743476854698,0.28601133,609.01,607.65,1.94213683]
[1743476855097,0.32827246,609.25,607.65,1.94213683]
[1743476855301,0.28601133,609.0,607.65,1.94213683]
[1743476855695,0.32827246,609.25,607.65,1.94213683]
[1743476855899,0.28601133,608.99,607.65,1.94213683]
[1743476856294,0.32827246,609.25,607.65,1.94213683]
[1743476856601,0.28601133,608.98,607.65,1.94213683]
[1743476856801,0.32827246,609.25,607.65,1.94213683]
[1743476857002,0.30209032,609.24,607.65,1.94213683]
[1743476857202,0.28601251,608.97,607.65,1.94213683]
[1743476857398,0.32827246,609.25,607.65,1.94213683]
[1743476857595,0.30208969,609.24,607.65,1.94213683]
[1743476857796,0.28601251,608.96,607.65,1.94213683]
[1743476858004,0.32827246,609.25,607.65,1.94213683]
[1743476858203,0.30208779,609.24,607.65,1.94213683]
[1743476858499,0.28601251,608.95,607.65,1.94213683]
[1743476858703,0.32827246,609.25,607.65,1.94213683]
[1743476858904,0.28601251,608.94,607.65,1.94213683]
[1743476859303,0.32827246,609.25,607.65,1.94213683]
[1743476859497,0.28601133,608.93,607.65,1.94213683]
[1743476859903,0.32827246,609.25,607.65,1.94213683]
[1743476860101,0.28601133,608.92,607.65,1.94213683]
[1743476860301,0.30208799,608.91,607.65,1.94213683]
[1743476860798,0.58813811,608.9,607.65,1.94213683]
[1743476861002,0.28605012,608.9,607.65,1.94213683]
[1743476865205,0.32827246,609.25,607.65,1.94213683]
[1743476865505,0.30206571,609.24,607.65,1.94213683]
[1743476865808,0.58805236,609.24,607.65,1.94213683]
[1743476866010,0.30206571,609.23,607.65,1.94213683]
[1743476866708,2.51363342,609.19,607.65,1.94213683]
[1743476866913,0.30206571,609.18,607.65,1.94213683]
[1743476867817,2.51363342,609.16,607.65,1.94213683]
[1743476868013,0.30206571,609.15,607.65,1.94213683]
[1743476868317,2.51363342,609.16,607.65,1.94213683]
[1743476868318,0.30206665,609.14,607.65,1.94213683]
[1743476868517,0.28600546,609.14,607.65,1.94213683]
[1743476868714,0.30206665,609.13,607.65,1.94213683]
[1743476871313,0.30206665,609.14,607.65,1.94213683]
[1743476871618,0.28600781,609.12,607.65,1.94213683]
[1743476871814,0.30206665,609.11,607.65,1.94213683]
[1743476873817,2.51363342,609.07,607.65,1.94213683]
[1743476874020,0.30206665,609.06,607.65,1.94213683]
[1743476874423,0.28601603,609.05,607.65,1.94213683]
[1743476874822,0.30206665,609.04,607.65,1.94213683]
[1743476875523,2.51363342,609.01,607.65,1.94213683]
[1743476875826,0.30206665,609.0,607.65,1.94213683]
[1743476877028,2.81570007,609.0,607.65,1.94213683]
[1743476877325,0.30207053,608.99,607.65,1.94213683]
[1743476878924,2.51363342,609.04,607.65,1.94213683]
[1743476878925,0.30207053,608.98,607.65,1.94213683]
[1743476879119,0.30207053,608.97,607.65,1.94213683]
[1743476879324,0.30207053,609.03,607.65,1.94213683]
[1743476879523,0.30207053,609.02,607.65,1.94213683]
[1743476879722,0.30207053,609.01,607.65,1.94213683]
[1743476879922,2.51363342,609.04,607.65,1.94213683]
[1743476880222,0.30206726,609.03,607.65,1.94213683]
[1743476880421,2.51363342,609.04,607.65,1.94213683]
[1743476880624,0.28603602,609.03,607.65,1.94213683]
[1743476883124,0.32827246,609.25,607.65,1.94213683]
[1743476883323,0.30207126,609.24,607.65,1.94213683]
[1743476883521,0.28601368,609.02,607.65,1.94213683]
[1743476883721,0.32827785,609.24,607.65,1.94213683]
[1743476883922,0.30206842,609.23,607.65,1.94213683]
[1743476884122,0.28601486,609.01,607.65,1.94213683]
[1743476884325,0.32827785,609.24,607.65,1.94213683]
[1743476884527,0.30206816,609.23,607.65,1.94213683]
[1743476884723,0.28601603,609.0,607.65,1.94213683]
[1743476885026,0.32827785,609.24,607.65,1.94213683]
[1743476885227,0.28601603,608.99,607.65,1.94213683]
[1743476885625,0.32827785,609.24,607.65,1.94213683]
[1743476885829,0.3020679,609.23,607.65,1.94213683]
[1743476886024,0.28601486,608.98,607.65,1.94213683]
[1743476886228,0.32827785,609.24,607.65,1.94213683]
[1743476886429,0.30207148,609.23,607.65,1.94213683]
[1743476886730,0.28601603,608.97,607.65,1.94213683]
[1743476887029,0.32827785,609.24,607.65,1.94213683]
[1743476887230,0.28601603,608.96,607.65,1.94213683]
[1743476887430,0.32827785,609.24,607.65,1.94213683]
[1743476887735,0.28601603,608.95,607.65,1.94213683]
[1743476888128,0.32827785,609.24,607.65,1.94213683]
[1743476888324,0.28601486,608.94,607.65,1.94213683]
[1743476888730,0.32827785,609.24,607.65,1.94213683]
[1743476888931,0.28601486,608.93,607.65,1.94213683]
[1743476889332,0.32827785,609.24,607.65,1.94213683]
[1743476889632,0.28601486,608.92,607.65,1.94213683]
[1743476889828,0.32827785,609.24,607.65,1.94213683]
[1743476890028,0.30206889,609.23,607.65,1.94213683]
[1743476890224,0.28601603,608.91,607.65,1.94213683]
[1743476890429,0.32827785,609.24,607.65,1.94213683]
[1743476890632,0.30206951,609.23,607.65,1.94213683]
[1743476890832,0.28601603,608.9,607.65,1.94213683]
[1743476891028,0.32827785,609.24,607.65,1.94213683]
[1743476891233,0.30207153,609.23,607.65,1.94213683]
[1743476891433,0.28601603,608.89,607.65,1.94213683]
[1743476891629,0.32827785,609.24,607.65,1.94213683]
[1743476891834,0.30207117,609.23,607.65,1.94213683]
[1743476892034,0.28601603,608.88,607.65,1.94213683]
[1743476892235,0.32827785,609.24,607.65,1.94213683]
[1743476892535,0.28601603,608.87,607.65,1.94213683]
[1743476892932,0.32827785,609.24,607.65,1.94213683]
[1743476893131,0.28601486,608.86,607.65,1.94213683]
[1743476893531,0.32827785,609.24,607.65,1.94213683]
[1743476893729,0.28601486,608.85,607.65,1.94213683]
[1743476894135,2.51363342,609.18,607.65,1.94213683]
[1743476894329,0.28602191,608.84,607.65,1.94213683]
[1743476894729,2.51363342,609.18,607.65,1.94213683]
[1743476894933,0.30206915,609.17,607.65,1.94213683]
[1743476895129,0.28602191,608.83,607.65,1.94213683]
[1743476895329,2.51363342,609.18,607.65,1.94213683]
[1743476895530,0.30206836,609.17,607.65,1.94213683]
[1743476895729,0.28602309,608.82,607.65,1.94213683]
[1743476895930,2.51363342,609.18,607.65,1.94213683]
[1743476896134,0.30206763,609.17,607.65,1.94213683]
[1743476896335,0.28602309,608.81,607.65,1.94213683]
[1743476896634,2.51363342,609.18,607.65,1.94213683]
[1743476896837,0.28602309,608.8,607.65,1.94213683]
[1743476897236,2.51363342,609.19,607.65,1.94213683]
[1743476897430,0.28602074,608.79,607.65,1.94213683]
[1743476897834,2.51363342,609.19,607.65,1.94213683]
[1743476898031,0.28602074,608.78,607.65,1.94213683]
[1743476898536,2.51363342,609.08,607.65,1.94213683]
[1743476898734,0.28601133,608.77,607.65,1.94213683]
[1743476898929,2.51363342,609.08,607.65,1.94213683]
[1743476899133,0.30206304,609.07,607.65,1.94213683]
[1743476899334,0.28602544,608.76,607.65,1.94213683]
[1743476899531,2.51363342,609.08,607.65,1.94213683]
[1743476899729,0.30206286,609.07,607.65,1.94213683]
[1743476899935,0.28602544,608.75,607.65,1.94213683]